bitfinex-derivatives/quotes_BTCF0:USTF0_20250429
["timestamp","ask_amount","ask_price","bid_price","bid_amount"]
[1745916992670,0.02017353,95045.0,95044.0,0.2103552]
[1745916992971,0.0015,95045.0,95044.0,0.2103552]
[1745916993168,0.0197142,95045.0,95044.0,0.3606552]
[1745916993368,0.0015,95045.0,95044.0,0.37709988]
[1745916994073,0.00784453,95058.0,95044.0,0.16674468]
[1745916994275,0.09622726,95060.0,95059.0,0.210322]
[1745916994572,0.09622726,95060.0,95059.0,0.571122]
[1745916994875,0.0015,95080.0,95075.0,0.2102866]
[1745916995274,0.0015,95080.0,95075.0,0.22673128]
[1745916995572,0.0015,95080.0,95079.0,0.2102777]
[1745916995965,0.0015,95080.0,95079.0,0.22672238]
[1745916996165,0.0326,95099.0,95088.0,0.2102578]
[1745916996373,0.1,95100.0,95091.0,0.3608]
[1745916996570,0.11808702,95100.0,95092.0,0.0525622]
[1745916996770,0.11808702,95100.0,95091.0,0.3608]
[1745916996771,0.0626,95099.0,95091.0,0.3608]
[1745916997166,0.0626,95099.0,95098.0,0.2102357]
[1745916997476,0.11808702,95100.0,95099.0,0.2102335]
[1745916998775,0.11808702,95100.0,95099.0,0.2719335]
[1745916998960,0.11808702,95100.0,95099.0,0.2859335]
[1745917000472,0.32831832,95100.0,95099.0,0.0451]
[1745917000672,0.17948702,95100.0,95099.0,0.2513335]
[1745917000874,0.38971832,95100.0,95099.0,0.01]
[1745917001263,0.2102445,95094.0,95093.0,0.0311]
[1745917001468,0.0525646,95088.0,95081.0,0.3608]
[1745917001669,0.09930592,95091.0,95086.0,0.2102604]
[1745917001872,0.0317,95087.0,95086.0,0.2102604]
[1745917002068,0.0309,95090.0,95089.0,0.2102556]
[1745917003074,0.2411534,95090.0,95089.0,0.12]
[1745917004177,0.2102583,95088.0,95085.0,0.0325]
[1745917004480,0.0325,95087.0,95085.0,0.0325]
[1745917004670,0.2102622,95086.0,95085.0,0.0325]
[1745917005078,0.2102622,95086.0,95085.0,0.2427644]
[1745917005574,0.2102622,95086.0,95085.0,0.0325]
[1745917005777,0.0325,95087.0,95086.0,0.2102622]
[1745917006077,0.0325,95087.0,95085.0,0.0335]
[1745917006078,0.2102437,95095.0,95094.0,0.210241]
[1745917006281,0.2102381,95097.0,95096.0,0.2102379]
[1745917007170,0.2408381,95097.0,95096.0,0.2102379]
[1745917008273,0.2102445,95094.0,95093.0,0.6034467]
[1745917009181,0.2433404,95096.0,95095.0,0.2102423]
[1745917010079,0.2433404,95096.0,95095.0,0.3302423]
[1745917011168,0.2433404,95096.0,95095.0,0.3312423]
[1745917012976,0.2433404,95096.0,95095.0,0.121]
[1745917013375,0.2433404,95096.0,95095.0,0.3312423]
[1745917014778,0.2433404,95096.0,95095.0,0.121]
[1745917016071,0.2433404,95096.0,95095.0,0.001]
[1745917016585,0.0306,95097.0,95096.0,0.2102401]
[1745917016882,0.32831832,95100.0,95099.0,0.2102335]
[1745917017082,0.32831832,95100.0,95095.0,0.001]
[1745917017083,0.2102357,95098.0,95097.0,0.262796]
[1745917017286,0.2102357,95098.0,95097.0,0.0628]
[1745917017475,0.2102357,95098.0,95097.0,0.0328]
[1745917017675,0.2410357,95098.0,95097.0,0.0328]
[1745917018076,0.2102401,95096.0,95095.0,0.001]
[1745917019076,0.2102428,95095.0,95092.0,0.210248]
[1745917019283,0.0327,95094.0,95093.0,0.0328]
[1745917019482,0.2429445,95094.0,95093.0,0.0328]
[1745917019686,0.2746445,95094.0,95093.0,0.0328]
[1745917020487,0.0644,95094.0,95093.0,0.2430468]
[1745917020878,0.2746445,95094.0,95093.0,0.0328]
[1745917021579,0.2746445,95094.0,95093.0,0.0338]
[1745917022488,0.2746445,95094.0,95093.0,0.0348]
[1745917025191,0.2746445,95094.0,95093.0,0.0338]
[1745917025886,0.11808702,95100.0,95093.0,0.3946]
[1745917026086,0.11808702,95100.0,95099.0,0.2102335]
[1745917026785,0.11808702,95100.0,95099.0,0.22632122]
[1745917026989,0.11808702,95100.0,95099.0,0.29032122]
[1745917027290,0.11808702,95100.0,95099.0,0.41032122]
[1745917029490,0.11808702,95100.0,95099.0,0.3942335]
[1745917029677,0.11808702,95100.0,95099.0,0.184]
[1745917029884,0.11808702,95100.0,95099.0,0.185]
[1745917030278,0.11808702,95100.0,95099.0,0.3952335]
[1745917032678,0.11808702,95100.0,95099.0,0.185]
[1745917033090,0.11808702,95100.0,95099.0,0.3952335]
[1745917033280,0.11808702,95100.0,95099.0,0.3962335]
[1745917036684,0.11808702,95100.0,95099.0,0.3942335]
[1745917036881,0.11808702,95100.0,95099.0,0.3962335]
[1745917037488,0.11808702,95100.0,95099.0,0.3942335]
[1745917037690,0.11808702,95100.0,95099.0,0.3962335]
[1745917053008,0.11808702,95100.0,95099.0,0.186]
[1745917053202,0.11808702,95100.0,95099.0,0.3962335]
[1745917054100,0.11808702,95100.0,95099.0,0.1532]
[1745917054301,0.32831832,95100.0,95099.0,0.1532]
[1745917054814,0.42501832,95100.0,95099.0,0.1532]
[1745917055204,0.42501832,95100.0,95099.0,0.0332]
[1745917057901,0.42527885,95100.0,95099.0,0.0332]
[1745917058505,0.42527885,95100.0,95099.0,0.002]
[1745917072828,0.42527885,95100.0,95095.0,0.0332]
[1745917072829,0.2102401,95096.0,95095.0,0.0332]
[1745917073824,0.2738401,95096.0,95095.0,0.0362]
[1745917074026,0.2738401,95096.0,95095.0,0.003]
[1745917075323,0.2738401,95096.0,95088.0,0.0525642]
[1745917075324,0.4244,95096.0,95076.0,0.0525708]
[1745917075524,0.2102832,95078.0,95077.0,0.2102777]
[1745917075719,0.0525751,95069.0,95058.0,0.3608]
[1745917075924,0.210322,95059.0,95058.0,0.15853311]
[1745917076115,0.210322,95059.0,95058.0,0.27853311]
[1745917077316,0.210322,95059.0,95058.0,0.28353311]
[1745917077627,0.210322,95059.0,95058.0,0.49385731]
[1745917077929,0.210322,95059.0,95058.0,0.49585731]
[1745917078619,0.210322,95059.0,95058.0,0.3373242]
[1745917079425,0.210322,95059.0,95058.0,0.3353242]
[1745917079619,0.22585195,95059.0,95058.0,0.3353242]
[1745917080127,0.22585195,95059.0,95058.0,0.3303242]
[1745917080429,0.01552995,95059.0,95058.0,0.3303242]
[1745917080622,0.1820978,95064.0,95060.0,0.2628928]
[1745917080820,0.2103151,95063.0,95062.0,0.2103131]
[1745917082119,0.2103175,95061.0,95060.0,0.2628974]
[1745917083026,0.2103175,95061.0,95060.0,0.210318]
[1745917083226,0.2103175,95061.0,95060.0,0.330318]
[1745917085730,0.01589889,95063.0,95062.0,0.2103153]
[1745917085923,0.12452,95064.0,95063.0,0.2103131]
[1745917086628,0.12452,95064.0,95063.0,0.2428131]
[1745917086826,0.12452,95064.0,95063.0,0.2745131]
[1745917087229,0.12452,95064.0,95063.0,0.3945131]
[1745917087230,0.14049082,95064.0,95063.0,0.3945131]
[1745917088526,0.14049082,95064.0,95063.0,0.3955131]
[1745917091131,0.01597082,95064.0,95063.0,0.3955131]
[1745917091332,0.12456,95076.0,95074.0,0.2102866]
[1745917091333,0.2102877,95075.0,95074.0,0.2102866]
[1745917091536,0.12456,95076.0,95074.0,0.2102866]
[1745917091537,0.12456,95076.0,95075.0,0.2102866]
[1745917091734,0.35019232,95076.0,95075.0,0.2102866]
[1745917092131,0.35019232,95076.0,95075.0,0.3302866]
[1745917093236,0.13990792,95076.0,95075.0,0.3302866]
[1745917094333,0.14090792,95076.0,95075.0,0.3302866]
[1745917094732,0.13990792,95076.0,95075.0,0.3302866]
[1745917095044,0.14090792,95076.0,95075.0,0.3302866]
[1745917095430,0.14090792,95076.0,95075.0,0.3312866]
[1745917097028,0.14090792,95076.0,95075.0,1.8312866]
[1745917099247,0.13990792,95076.0,95075.0,1.8628866]
[1745917099438,0.14090792,95076.0,95075.0,1.8628866]
[1745917100446,0.14090792,95076.0,95075.0,0.3628866]
[1745917101239,0.14090792,95076.0,95075.0,0.3618866]
[1745917101439,0.14090792,95076.0,95075.0,0.3628866]
[1745917101746,0.01634792,95076.0,95075.0,0.3628866]
[1745917102946,0.22663232,95076.0,95075.0,0.3628866]
[1745917103450,0.01634792,95076.0,95075.0,0.3628866]
[1745917103748,0.01634792,95076.0,95075.0,0.3638866]
[1745917104145,0.01534792,95076.0,95075.0,0.3638866]
[1745917104345,0.001,95076.0,95075.0,0.3638866]
[1745917104648,0.001,95076.0,95075.0,0.3628866]
[1745917104952,0.0015,95080.0,95079.0,0.2102777]
[1745917105247,0.0015,95080.0,95079.0,0.3302777]
[1745917105544,0.01675534,95080.0,95079.0,0.3302777]
[1745917105745,0.0015,95080.0,95079.0,0.3302777]
[1745917105945,0.3049403,95096.0,95095.0,0.2102423]
[1745917106138,0.3049403,95096.0,95095.0,0.5710423]
[1745917106342,0.32041823,95096.0,95095.0,0.5710423]
[1745917107051,0.11017793,95096.0,95095.0,0.5710423]
[1745917107251,0.11017793,95096.0,95095.0,0.6021423]
[1745917107755,0.11117793,95096.0,95095.0,0.6021423]
[1745917107953,0.11892746,95096.0,95095.0,0.6021423]
[1745917108150,0.12092746,95096.0,95095.0,0.6021423]
[1745917108356,0.11992746,95096.0,95095.0,0.6021423]
[1745917108557,0.11792746,95096.0,95095.0,0.6021423]
[1745917108745,0.11992746,95096.0,95095.0,0.6021423]
[1745917108945,0.11217793,95096.0,95095.0,0.6021423]
[1745917110155,0.11217793,95096.0,95095.0,0.7221423]
[1745917110754,0.11117793,95096.0,95095.0,0.7221423]
[1745917111154,0.11117793,95096.0,95095.0,0.6021423]
[1745917111653,0.11117793,95096.0,95095.0,0.6031423]
[1745917113248,0.11117793,95096.0,95095.0,0.7231423]
[1745917113642,0.32041803,95096.0,95095.0,0.7231423]
[1745917113842,0.32141803,95096.0,95095.0,0.7231423]
[1745917114242,0.32141803,95096.0,95095.0,0.6031423]
[1745917114757,0.32041803,95096.0,95095.0,0.6021423]
[1745917115067,0.32141803,95096.0,95095.0,0.6021423]
[1745917115856,0.32041803,95096.0,95095.0,0.6021423]
[1745917116047,0.32241803,95096.0,95095.0,0.6021423]
[1745917117343,0.11217793,95096.0,95095.0,0.6021423]
[1745917118262,0.11217793,95096.0,95095.0,0.7221423]
[1745917120261,0.11117793,95096.0,95095.0,0.7221423]
[1745917120757,0.11017793,95096.0,95095.0,0.7221423]
[1745917120956,0.11117793,95096.0,95095.0,0.7221423]
[1745917121955,0.11017793,95096.0,95095.0,0.7221423]
[1745917122154,0.11117793,95096.0,95095.0,0.7221423]
[1745917123459,0.04887793,95096.0,95095.0,0.7221423]
[1745917123655,0.01747793,95096.0,95095.0,0.7221423]
[1745917124055,0.01547793,95096.0,95095.0,0.7221423]
[1745917124255,0.002,95096.0,95095.0,0.7221423]
[1745917124655,0.10026053,95100.0,95099.0,0.2102335]
[1745917125261,0.11450988,95100.0,95099.0,0.3302335]
[1745917125457,0.32474118,95100.0,95099.0,0.1854]
[1745917125663,0.32474118,95100.0,95099.0,0.1524]
[1745917126369,0.35724118,95100.0,95099.0,0.1524]
[1745917126856,0.35924118,95100.0,95099.0,0.1524]
[1745917127259,0.35924118,95100.0,95099.0,0.0324]
[1745917127460,0.36024118,95100.0,95099.0,0.0324]
[1745917130355,0.36124118,95100.0,95099.0,0.0324]
[1745917134971,0.36124118,95100.0,95093.0,0.033]
[1745917134972,0.2102528,95093.0,95092.0,0.2102479]
[1745917135168,0.2628191,95091.0,95090.0,0.2102519]
[1745917135372,0.2102563,95091.0,95090.0,0.2102519]
[1745917135874,0.2410563,95091.0,95090.0,0.2102519]
[1745917136174,0.2410563,95091.0,95090.0,0.3302519]
[1745917136375,0.2721563,95091.0,95090.0,0.3302519]
[1745917136966,0.2721563,95091.0,95090.0,0.3622519]
[1745917137476,0.2741563,95091.0,95090.0,0.3622519]
[1745917138175,0.0639,95091.0,95090.0,0.3622519]
[1745917138477,0.2741512,95091.0,95090.0,0.3622519]
[1745917143073,0.0328,95091.0,95090.0,0.3622519]
[1745917143277,0.002,95091.0,95090.0,0.3622519]
[1745917145308,0.11424935,95100.0,95099.0,0.2102335]
[1745917145498,0.11424935,95100.0,95099.0,0.5710335]
[1745917146000,0.11424935,95100.0,95099.0,2.0710335]
[1745917146202,0.11424935,95100.0,95099.0,2.2542335]
[1745917146398,0.11624935,95100.0,95099.0,2.2542335]
[1745917146809,0.11624935,95100.0,95099.0,2.2539875]
[1745917147511,0.11824935,95100.0,95099.0,2.2539875]
[1745917148709,0.32848065,95100.0,95099.0,2.2539875]
[1745917148905,0.11824935,95100.0,95099.0,2.2539875]
[1745917149306,0.32848065,95100.0,95099.0,2.2539875]
[1745917150704,0.32848065,95100.0,95099.0,0.7539875]
[1745917150911,0.11824935,95100.0,95099.0,0.7539875]
[1745917155813,0.11824935,95100.0,95099.0,0.3931875]
[1745917156113,0.11824935,95100.0,95099.0,0.7539875]
[1745917157012,0.11824935,95100.0,95099.0,0.3931875]
[1745917157219,0.11824935,95100.0,95099.0,0.7539875]
[1745917159318,0.11824935,95100.0,95099.0,2.2539875]
[1745917169610,0.32848065,95100.0,95099.0,2.2539875]
[1745917169820,0.42438065,95100.0,95099.0,2.2539875]
[1745917170118,0.21414935,95100.0,95099.0,2.2539875]
[1745917170815,0.42438065,95100.0,95099.0,2.2236875]
[1745917171011,0.42438065,95100.0,95099.0,0.3628875]
[1745917171313,0.21414935,95100.0,95099.0,0.2428875]
[1745917171516,0.21414935,95100.0,95099.0,1.7428875]
[1745917171911,0.18194935,95100.0,95099.0,1.7428875]
[1745917172112,0.18194935,95100.0,95099.0,1.8628875]
[1745917172714,0.14914935,95100.0,95099.0,1.8628875]
[1745917182018,0.14914935,95100.0,95099.0,2.2236875]
[1745917186319,0.18164935,95100.0,95099.0,2.2236875]
[1745917193122,0.39188065,95100.0,95099.0,2.2236875]
[1745917193322,0.18164935,95100.0,95099.0,2.2236875]
[1745917194523,0.18164935,95100.0,95099.0,1.8628875]
[1745917194825,0.18164935,95100.0,95099.0,2.2236875]
[1745917196736,0.18164935,95100.0,95099.0,1.8628875]
[1745917196938,0.18164935,95100.0,95099.0,2.2236875]
[1745917197525,0.21464935,95100.0,95099.0,2.2236875]
[1745917197730,0.21464935,95100.0,95099.0,1.8628875]
[1745917197937,0.21464935,95100.0,95099.0,2.2236875]
[1745917199537,0.11824935,95100.0,95099.0,2.2236875]
[1745917200131,0.11824935,95100.0,95099.0,2.2546875]
[1745917210745,0.11824935,95100.0,95099.0,2.2546875]
[1745917211757,0.10000533,95100.0,95099.0,2.2546875]
[1745917212158,0.08575598,95100.0,95099.0,2.2546875]
[1745917212952,0.08575598,95100.0,95099.0,2.7789395]
[1745917215060,0.01946958,95100.0,95099.0,2.7789395]
[1745917215258,0.001,95106.0,95105.0,0.2102202]
[1745917215459,0.001,95106.0,95105.0,0.67616819]
[1745917216161,0.001,95106.0,95105.0,0.79616819]
[1745917217463,0.0967,95122.0,95114.0,0.2102003]
[1745917217763,0.0967,95122.0,95114.0,0.5710003]
[1745917217764,0.01351107,95119.0,95114.0,0.5710003]
[1745917218263,0.01351107,95119.0,95114.0,0.6910003]
[1745917218460,0.01351107,95119.0,95114.0,0.7558003]
[1745917218858,0.01351107,95119.0,95114.0,2.2235003]
[1745917219158,0.0641,95118.0,95114.0,2.2235003]
[1745917219753,0.0035,95115.0,95114.0,2.2235003]
[1745917220155,0.0035,95115.0,95114.0,2.1035003]
[1745917223058,0.2136981,95115.0,95114.0,0.3608]
[1745917223259,0.2136981,95115.0,95102.0,0.2102224]
[1745917223260,0.0525556,95104.0,95102.0,0.2102224]
[1745917223463,0.2430269,95103.0,95102.0,0.2627786]
[1745917223654,0.3062269,95103.0,95102.0,0.2627786]
[1745917223855,0.3062269,95103.0,95102.0,0.2102224]
[1745917224163,0.2102335,95100.0,95099.0,0.2102314]
[1745917224666,0.2734335,95100.0,95099.0,0.2102314]
[1745917225255,0.2734335,95100.0,95099.0,0.2414314]
[1745917226664,0.2734335,95100.0,95099.0,0.2404314]
[1745917226862,0.2734335,95100.0,95099.0,0.2414314]
[1745917227466,0.2734335,95100.0,95099.0,0.2404314]
[1745917227664,0.2734335,95100.0,95099.0,0.2414314]
[1745917228165,0.2734335,95100.0,95099.0,0.2112314]
[1745917230956,0.2734335,95100.0,95099.0,0.2441314]
[1745917232258,0.2734335,95100.0,95099.0,0.2112314]
[1745917233963,0.2734335,95100.0,95099.0,0.2430314]
[1745917234163,0.168352,95100.0,95083.0,0.16070234]
[1745917234369,0.168352,95100.0,95072.0,0.3608]
[1745917234370,0.2102622,95086.0,95085.0,0.2102571]
[1745917234566,0.2102622,95086.0,95085.0,0.2628226]
[1745917234959,0.2728622,95086.0,95085.0,1.7628226]
[1745917235272,0.2869312,95086.0,95085.0,0.3153884]
[1745917236360,0.2869312,95086.0,95085.0,0.3483884]
[1745917236871,0.2869312,95086.0,95085.0,0.3493884]
[1745917237267,0.076669,95086.0,95085.0,0.3513884]
[1745917237466,0.2869312,95086.0,95085.0,0.3503884]
[1745917237960,0.2869312,95086.0,95085.0,0.3493884]
[1745917239376,0.2869312,95086.0,95085.0,0.3483884]
[1745917240779,0.076669,95086.0,95085.0,0.3483884]
[1745917240976,0.076669,95086.0,95085.0,0.3493884]
[1745917241976,0.2869312,95086.0,95085.0,0.3493884]
[1745917243567,0.2869312,95086.0,95085.0,0.3483884]
[1745917243779,0.2869312,95086.0,95085.0,0.3493884]
[1745917244474,0.2869312,95086.0,95085.0,0.3483884]
[1745917247568,0.2869312,95086.0,95085.0,0.033]
[1745917247764,0.2102755,95080.0,95079.0,0.3169882]
[1745917248565,0.2422755,95080.0,95079.0,0.3169882]
[1745917248763,0.25018767,95080.0,95079.0,0.3169882]
[1745917248985,0.25018767,95080.0,95079.0,0.0015774]
[1745917249167,0.64188767,95080.0,95079.0,0.0015774]
[1745917250072,0.76188767,95080.0,95079.0,0.0015774]
[1745917250670,0.2102844,95076.0,95075.0,0.0010518]
[1745917251071,0.210302,95068.0,95065.0,0.0301]
[1745917251971,0.274002,95068.0,95066.0,0.2103054]
[1745917252379,0.274002,95068.0,95066.0,0.2103063]
[1745917253179,0.274002,95068.0,95067.0,0.3909]
[1745917253180,0.394002,95068.0,95067.0,0.3909]
[1745917253379,0.394002,95068.0,95067.0,0.3919]
[1745917253772,0.394002,95068.0,95067.0,0.0311]
[1745917253980,0.49919,95068.0,95067.0,0.001]
[1745917254285,0.2103131,95063.0,95059.0,0.3608]
[1745917254478,0.2957931,95063.0,95062.0,0.21189321]
[1745917255380,0.3288931,95063.0,95062.0,0.21189321]
[1745917256171,0.3288931,95063.0,95062.0,0.24439321]
[1745917257383,0.2103131,95063.0,95062.0,0.24439321]
[1745917257595,0.2103131,95063.0,95062.0,0.27539321]
[1745917259681,0.2103131,95063.0,95062.0,0.24439321]
[1745917260386,0.2751131,95063.0,95062.0,0.24439321]
[1745917260587,0.2103131,95063.0,95062.0,0.24439321]
[1745917261476,0.08548,95066.0,95065.0,0.2103087]
[1745917261875,0.08164,95071.0,95070.0,0.2102976]
[1745917262082,0.2102867,95078.0,95077.0,0.2102777]
[1745917262390,0.2919267,95078.0,95077.0,0.2102777]
[1745917262684,0.2919267,95078.0,95077.0,0.3154177]
[1745917263279,0.2919267,95078.0,95077.0,0.4354177]
[1745917263783,0.2929267,95078.0,95077.0,0.4354177]
[1745917263983,0.2112867,95078.0,95077.0,0.4354177]
[1745917264185,0.2929267,95078.0,95077.0,0.4354177]
[1745917269197,0.08264,95078.0,95077.0,0.4354177]
[1745917269701,0.2929199,95078.0,95077.0,0.4354177]
[1745917270195,0.08264,95078.0,95077.0,0.4354177]
[1745917270891,0.001,95078.0,95077.0,0.4354177]
[1745917272889,0.001,95078.0,95077.0,1.9354177]
[1745917276297,0.2102542,95090.0,95089.0,0.2102512]
[1745917276490,0.2102541,95090.0,95087.0,0.3608]
[1745917276690,0.2102541,95090.0,95089.0,0.2738556]
[1745917277103,0.210242,95096.0,95095.0,0.2102401]
[1745917277399,0.210242,95096.0,95095.0,0.5710401]
[1745917277786,0.2102401,95096.0,95095.0,0.5710401]
[1745917278189,0.22314986,95096.0,95095.0,0.6910401]
[1745917278390,0.01290976,95096.0,95095.0,0.6910401]
[1745917278589,0.2918684,95102.0,95101.0,0.2102291]
[1745917279184,0.2918684,95102.0,95101.0,0.3302291]
[1745917279392,0.08164,95102.0,95101.0,0.3302291]
[1745917279597,0.2918669,95102.0,95101.0,0.3302291]
[1745917280192,0.30522735,95102.0,95101.0,0.3302291]
[1745917280390,0.30722735,95102.0,95101.0,0.3302291]
[1745917280590,0.09700045,95102.0,95101.0,0.3302291]
[1745917280797,0.30722735,95102.0,95101.0,0.3302291]
[1745917281003,0.09700045,95102.0,95101.0,0.3302291]
[1745917282087,0.09500045,95102.0,95101.0,0.3302291]
[1745917282892,0.30522735,95102.0,95101.0,0.3302291]
[1745917283093,0.0525599,95100.0,95098.0,0.2102335]
[1745917283294,0.0525629,95091.0,95088.0,0.0525634]
[1745917283490,0.2102733,95082.0,95081.0,0.2102689]
[1745917284000,0.3035733,95082.0,95081.0,0.2102689]
[1745917285094,0.3035711,95082.0,95081.0,0.2102689]
[1745917285497,0.0933,95082.0,95081.0,0.2102689]
[1745917286094,0.0618,95082.0,95081.0,0.2102689]
[1745917286294,0.0316,95082.0,95081.0,0.2102689]
[1745917286797,0.2418711,95082.0,95081.0,0.2102689]
[1745917288195,0.2719711,95082.0,95081.0,0.2102689]
[1745917289197,0.2719711,95082.0,95081.0,0.3302689]
[1745917289696,0.2719711,95082.0,95081.0,0.3622689]
[1745917289902,0.0316,95082.0,95081.0,0.3622689]
[1745917290398,0.2418711,95082.0,95081.0,0.3622689]
[1745917290591,0.0316,95082.0,95081.0,0.3622689]
[1745917292301,0.2418711,95082.0,95081.0,0.3622689]
[1745917292494,0.0316,95082.0,95081.0,0.3622689]
[1745917293097,0.0816,95088.0,95087.0,0.21026]
[1745917293400,0.0816,95088.0,95087.0,0.57106]
[1745917293802,0.3526088,95093.0,95087.0,0.4133648]
[1745917294000,0.07796,95093.0,95092.0,0.210249]
[1745917294192,0.07796,95093.0,95092.0,0.330249]
[1745917294392,0.2426366,95098.0,95094.0,0.0525606]
[1745917294603,0.0324,95098.0,95097.0,0.2102379]
[1745917295116,0.0324,95098.0,95097.0,0.3302379]
[1745917295300,0.07796,95101.0,95100.0,0.2102313]
[1745917295603,0.22358795,95102.0,95101.0,0.2102291]
[1745917295801,0.2102275,95102.0,95101.0,0.2102291]
[1745917296196,0.3205832,95104.0,95103.0,0.2102247]
[1745917296399,0.3505832,95104.0,95103.0,0.2102247]
[1745917296998,0.36392409,95104.0,95103.0,0.2102247]
[1745917297993,0.36392409,95104.0,95103.0,0.2413247]
[1745917298306,0.36392409,95104.0,95103.0,0.2613247]
[1745917298502,0.36392409,95104.0,95103.0,0.2302247]
[1745917303603,0.36392409,95104.0,95103.0,0.02]
[1745917304110,0.48392409,95104.0,95103.0,0.02]
[1745917305206,0.36392409,95104.0,95103.0,0.02]
[1745917305609,0.36392409,95104.0,95103.0,0.2302247]
[1745917305797,0.36392409,95104.0,95103.0,0.5910247]
[1745917306202,0.36392409,95104.0,95103.0,0.7110247]
[1745917307207,0.28596409,95104.0,95103.0,0.7110247]
[1745917307414,0.36392409,95104.0,95103.0,0.7110247]
[1745917308209,0.36392409,95104.0,95103.0,0.5910247]
[1745917310202,0.36392409,95104.0,95103.0,0.7110247]
[1745917310700,0.36392409,95104.0,95103.0,0.7433247]
[1745917315417,0.12370089,95104.0,95103.0,0.7433247]
[1745917315617,0.33392329,95104.0,95103.0,0.7433247]
[1745917316307,0.30152329,95104.0,95103.0,0.7433247]
[1745917316508,0.30152329,95104.0,95103.0,0.7739247]
[1745917316809,0.30152329,95104.0,95103.0,0.7433247]
[1745917317807,0.09130089,95104.0,95103.0,0.7433247]
[1745917318002,0.30152329,95104.0,95103.0,0.7433247]
[1745917323113,0.0015,95115.0,95103.0,0.5856557]
[1745917323311,0.0015,95115.0,95114.0,0.5710003]
[1745917323713,0.28575703,95115.0,95114.0,0.5710003]
[1745917324224,0.28575703,95115.0,95114.0,0.1507]
[1745917324424,0.31645703,95115.0,95114.0,0.12]
[1745917325224,0.2102092,95110.0,95109.0,0.0322]
[1745917325522,0.2102092,95110.0,95109.0,0.2424114]
[1745917326224,0.2738092,95110.0,95109.0,0.2424114]
[1745917326925,0.2102224,95104.0,95103.0,0.3608]
[1745917327125,0.2102224,95104.0,95103.0,0.5710247]
[1745917327619,0.2738181,95106.0,95105.0,0.2102202]
[1745917327814,0.0314,95106.0,95105.0,0.2102202]
[1745917328120,0.2102117,95109.0,95108.0,0.2102114]
[1745917328328,0.2416117,95109.0,95108.0,0.2435114]
[1745917328527,0.2416117,95109.0,95108.0,0.2766114]
[1745917328725,0.2747117,95109.0,95108.0,0.2766114]
[1745917329121,0.2747117,95109.0,95108.0,0.3966114]
[1745917330127,0.2416117,95109.0,95108.0,0.3966114]
[1745917330513,0.0314,95109.0,95108.0,0.3966114]
[1745917331721,0.2852871,95111.0,95110.0,0.2102092]
[1745917331919,0.07508,95111.0,95110.0,0.2102092]
[1745917332123,0.07508,95111.0,95110.0,0.3302092]
[1745917332915,0.031,95117.0,95114.0,0.2102003]
[1745917333122,0.07508,95116.0,95114.0,0.2102003]
[1745917333824,0.07508,95116.0,95114.0,0.2762003]
[1745917334217,0.07508,95116.0,95114.0,0.3962003]
[1745917334413,0.2852774,95116.0,95114.0,0.3962003]
[1745917334613,0.22415703,95115.0,95114.0,0.3962003]
[1745917337429,0.01395893,95115.0,95114.0,0.3962003]
[1745917340025,0.22415703,95115.0,95114.0,0.3962003]
[1745917341329,0.22415703,95115.0,95114.0,1.8962003]
[1745917341821,0.22415703,95115.0,95114.0,0.3962003]
[1745917343221,0.01395893,95115.0,95114.0,0.3962003]
[1745917343623,0.0015,95115.0,95114.0,0.7570003]
[1745917343827,0.0015,95115.0,95114.0,0.7902003]
[1745917345131,0.0015,95115.0,95114.0,2.2902003]
[1745917352332,0.01285075,95119.0,95118.0,0.2101915]
[1745917352630,0.0525425,95128.0,95127.0,0.2101694]
[1745917352936,0.0525425,95128.0,95127.0,0.5709694]
[1745917353140,0.2941119,95128.0,95127.0,0.6909694]
[1745917353641,0.34498628,95128.0,95127.0,0.7225694]
[1745917353836,0.41862628,95128.0,95127.0,0.7315694]
[1745917354139,0.41862628,95128.0,95127.0,0.6115694]
[1745917355238,0.41862628,95128.0,95127.0,0.6205694]
[1745917356128,0.36608378,95128.0,95127.0,0.6205694]
[1745917358740,0.36608378,95128.0,95127.0,0.5889694]
[1745917360535,0.36608378,95128.0,95127.0,0.6221694]
[1745917368548,0.30408378,95128.0,95127.0,0.6221694]
[1745917369348,0.36628378,95128.0,95127.0,0.6221694]
[1745917370042,0.36628378,95128.0,95127.0,0.2613694]
[1745917375443,0.36628378,95128.0,95127.0,0.2937694]
[1745917376238,0.33628378,95128.0,95127.0,0.2937694]
[1745917376636,0.26264378,95128.0,95127.0,0.2937694]
[1745917376842,0.30408378,95128.0,95127.0,0.2937694]
[1745917377252,0.23044378,95128.0,95127.0,0.2937694]
[1745917377453,0.30408378,95128.0,95127.0,0.2937694]
[1745917377849,0.30408378,95128.0,95127.0,0.2613694]
[1745917378047,0.30408378,95128.0,95127.0,0.2925694]
[1745917380548,0.09391438,95128.0,95127.0,0.2925694]
[1745917380749,0.30408378,95128.0,95127.0,0.2925694]
[1745917381761,0.30408378,95128.0,95127.0,0.6533694]
[1745917382050,0.30408378,95128.0,95127.0,0.6221694]
[1745917387651,0.30408378,95128.0,95127.0,0.6536694]
[1745917389152,0.30408378,95128.0,95127.0,0.7736694]
[1745917389349,0.09391438,95128.0,95127.0,0.7736694]
[1745917389545,0.30408378,95128.0,95127.0,0.7736694]
[1745917390363,0.09391438,95128.0,95127.0,0.7736694]
[1745917390549,0.02027438,95128.0,95127.0,0.7736694]
[1745917390755,0.2101653,95130.0,95128.0,0.2101694]
[1745917390756,0.07172,95129.0,95128.0,0.2101694]
[1745917391155,0.2818872,95129.0,95128.0,0.3301694]
[1745917391457,0.07172,95129.0,95128.0,0.3301694]
[1745917391653,0.09490138,95129.0,95128.0,0.3301694]
[1745917392047,0.09490138,95129.0,95128.0,0.3381694]
[1745917392449,0.09490138,95129.0,95128.0,0.3471694]
[1745917393157,0.02318138,95129.0,95128.0,0.3471694]
[1745917393356,0.07172,95129.0,95128.0,0.3471694]
[1745917393756,0.2818872,95129.0,95128.0,0.3471694]
[1745917393956,0.07172,95129.0,95128.0,0.3471694]
[1745917394762,0.1481385,95135.0,95128.0,0.3471694]
[1745917394763,0.07172,95138.0,95128.0,0.137]
[1745917395062,0.07172,95138.0,95137.0,0.6234864]
[1745917396257,0.07172,95138.0,95137.0,0.7434864]
[1745917396647,0.09465403,95138.0,95137.0,0.7494864]
[1745917396853,0.09465403,95138.0,95137.0,0.7564864]
[1745917397758,0.02804201,95138.0,95137.0,0.8615984]
[1745917397959,0.2818349,95153.0,95149.0,0.210123]
[1745917398160,0.02402647,95150.0,95149.0,0.210123]
[1745917398359,0.0015,95150.0,95149.0,0.570923]
[1745917399158,0.02474347,95150.0,95149.0,0.699923]
[1745917399464,0.0015,95150.0,95149.0,0.699923]
[1745917399864,0.0015,95150.0,95149.0,0.708923]
[1745917400661,0.0015,95150.0,95149.0,1.589509]
[1745917401556,0.0015,95150.0,95149.0,3.089509]